bitfinex/quotes_ETHUSD_20260114
["timestamp","ask_amount","ask_price","bid_price","bid_amount"]
[1768348986475,0.24489179,3326.2,3325.0,0.62530126]
[1768348987692,0.24489179,3326.2,3325.1,3.00742834]
[1768348988390,0.24489179,3326.2,3325.2,2.27051464]
[1768348989448,0.24489179,3326.2,3325.1,3.00742834]
[1768348989765,0.24489179,3326.2,3325.3,3.00724746]
[1768348989975,0.24489179,3326.2,3325.2,0.66401633]
[1768348990179,0.24489179,3326.2,3325.2,3.67133118]
[1768348990474,3.25133893,3326.2,3325.2,0.66401633]
[1768348990695,0.24489179,3326.2,3325.2,3.00732859]
[1768348990902,0.24489179,3326.2,3325.0,5.27801215]
[1768348990903,0.24489179,3326.1,3325.1,3.00737683]
[1768348991075,0.24489179,3326.1,3325.3,2.27051464]
[1768348991275,0.24489179,3326.1,3325.5,2.27051464]
[1768348991482,0.24489179,3326.1,3325.6,2.50057326]
[1768348991884,0.24489179,3326.1,3325.6,0.23005862]
[1768348992079,0.24489179,3326.1,3325.2,5.27782686]
[1768348992278,0.24489179,3326.1,3325.3,3.00722898]
[1768348993171,3.25142361,3326.1,3325.0,3.00750935]
[1768348993597,6.25795543,3326.1,3324.9,0.001]
[1768348993900,0.32514236,3326.0,3324.9,0.001]
[1768348994075,3.33178676,3326.0,3324.9,0.001]
[1768348994390,0.32514236,3326.0,3324.9,0.001]
[1768348994597,3.25142733,3326.1,3324.9,0.001]
[1768348994795,6.25796287,3326.1,3324.9,0.001]
[1768348994982,7.72586077,3326.1,3324.9,0.001]
[1768348995378,0.395,3326.0,3324.9,2.27151464]
[1768348995794,0.395,3326.0,3325.0,5.27803343]
[1768348995991,0.395,3326.0,3325.0,9.11421072]
[1768348996198,0.395,3326.0,3325.1,2.27051464]
[1768348997774,0.395,3326.0,3325.1,5.2779055]
[1768348997968,0.395,3326.0,3325.1,2.27051464]
[1768348998183,0.395,3326.0,3325.2,0.001]
[1768348998417,0.75964867,3326.0,3325.2,0.001]
[1768348999814,3.76628283,3326.0,3325.2,0.001]
[1768349000112,0.75964867,3326.0,3325.2,0.001]
[1768349000322,0.395,3326.0,3325.2,0.001]
[1768349003017,3.40161849,3326.0,3325.2,0.001]
[1768349003511,0.395,3326.0,3325.2,0.001]
[1768349004286,0.24489179,3326.1,3325.2,2.10957607]
[1768349004820,0.63989179,3326.1,3325.8,2.10857607]
[1768349005016,1.57568419,3327.5,3325.8,2.31943368]
[1768349005324,0.19591343,3327.3,3325.8,2.31943368]
[1768349005619,0.395,3327.2,3325.8,2.31943368]
[1768349006386,3.59651532,3327.2,3326.0,2.10857607]
[1768349006624,0.35965153,3327.1,3326.0,2.10857607]
[1768349008293,3.36528327,3327.1,3326.1,3.00652415]
[1768349008498,3.36528327,3327.1,3326.0,5.11515745]
[1768349008715,3.36528327,3327.1,3326.0,5.11518647]
[1768349009228,6.37091501,3327.1,3326.0,2.10857607]
[1768349009396,0.39561967,3327.0,3325.8,3.0067819]
[1768349009598,0.39561967,3327.0,3325.9,5.11526538]
[1768349009805,0.39561967,3327.0,3326.0,5.11518907]
[1768349010010,0.87046496,3327.1,3326.1,2.10857607]
[1768349010194,0.51081343,3327.1,3326.1,2.10857607]
[1768349010399,0.002,3326.9,3326.2,3.00643376]
[1768349010610,0.002,3326.9,3326.1,2.10857607]
[1768349010817,0.002,3326.9,3326.1,3.00652414]
[1768349011014,0.002,3326.9,3326.2,2.10857607]
[1768349011214,0.395,3326.8,3326.2,2.10857607]
[1768349011724,0.397,3326.9,3326.2,2.10857607]
[1768349012104,0.397,3326.9,3326.1,3.51803416]
[1768349012307,0.002,3327.2,3326.5,2.10857607]
[1768349012624,0.15661094,3327.6,3326.7,2.10857607]
[1768349012820,0.55161094,3327.6,3326.7,2.10857607]
[1768349013024,0.395,3327.6,3326.7,2.10857607]
[1768349013223,0.395,3327.6,3326.8,2.10857607]
[1768349013727,0.002,3327.8,3326.8,2.10857607]
[1768349013901,0.397,3327.8,3326.8,2.10857607]
[1768349014515,0.397,3327.8,3327.0,2.10857607]
[1768349016629,0.397,3327.8,3327.1,5.30754161]
[1768349016800,0.397,3327.8,3327.1,3.00562051]
[1768349017005,0.397,3327.8,3327.1,2.3019211]
[1768349018729,0.002,3327.8,3327.2,2.3019211]
[1768349019051,0.395,3327.7,3327.2,2.3019211]
[1768349019702,0.002,3327.8,3327.2,2.3019211]
[1768349020853,0.002,3327.8,3327.2,5.30738243]
[1768349021947,0.002,3327.8,3327.3,2.3019211]
[1768349022462,0.002,3327.5,3327.3,2.3019211]
[1768349023279,0.002,3327.5,3327.4,5.30727062]
[1768349023760,0.002,3327.5,3327.4,2.3019211]
[1768349024444,0.002,3327.5,3326.2,2.3019211]
[1768349024626,0.395,3327.4,3326.7,2.3019211]
[1768349024822,0.002,3327.5,3326.8,2.3019211]
[1768349025039,0.397,3327.5,3326.8,2.3019211]
[1768349025233,0.002,3327.5,3327.0,2.3019211]
[1768349025631,0.002,3327.5,3326.6,2.3019211]
[1768349025838,0.002,3327.5,3326.5,3.00613655]
[1768349026448,0.002,3327.5,3326.7,5.30784788]
[1768349026759,0.002,3327.5,3326.7,2.3019211]
[1768349027261,0.002,3327.5,3326.7,5.30788742]
[1768349027861,0.002,3327.5,3326.7,2.3019211]
[1768349028050,0.3422237,3327.5,3326.7,2.3019211]
[1768349028228,0.3422237,3327.5,3326.8,2.3019211]
[1768349028430,0.002,3327.5,3326.8,2.3019211]
[1768349028635,0.002,3327.5,3326.7,3.00594584]
[1768349029381,0.002,3327.5,3326.7,5.30786694]
[1768349029659,0.002,3327.5,3326.3,2.3019211]
[1768349029959,1.32806126,3327.5,3326.4,0.23019211]
[1768349030263,0.002,3327.5,3326.3,2.3019211]
[1768349031668,0.002,3327.5,3326.5,2.3019211]
[1768349032870,0.002,3327.5,3326.4,8.3144271]
[1768349033173,0.002,3327.5,3326.5,2.3019211]
[1768349033874,0.002,3327.5,3326.6,2.3019211]
[1768349034075,0.34021985,3327.4,3326.6,2.3019211]
[1768349034240,0.34021985,3327.4,3326.8,0.001]
[1768349034553,0.002,3327.2,3326.8,0.001]
[1768349038203,0.002,3327.2,3326.8,2.3029211]
[1768349038504,0.395,3327.1,3326.8,0.001]
[1768349039417,0.395,3327.1,3326.8,2.3029211]
[1768349040313,0.395,3327.0,3326.9,2.3019211]
[1768349041307,0.395,3327.0,3326.5,2.3019211]
[1768349041611,0.395,3327.0,3325.8,3.00672868]
[1768349041612,0.395,3327.0,3325.8,2.3019211]
[1768349041980,1.27077813,3326.9,3325.5,2.3029211]
[1768349042282,3.0059819,3326.7,3325.7,2.3019211]
[1768349042876,0.395,3326.6,3325.5,0.001]
[1768349043223,2.59373488,3326.6,3325.2,0.001]
[1768349043538,2.19873488,3326.4,3325.2,0.001]
[1768349043688,2.19873488,3326.4,3324.9,0.001]
[1768349043893,2.19873488,3326.4,3324.2,3.00821597]
[1768349044193,2.19873488,3326.4,3323.8,2.3019211]
[1768349044194,2.19873488,3326.1,3323.8,2.3019211]
[1768349044392,2.19873488,3325.9,3323.8,2.3019211]
[1768349044930,0.52884978,3325.8,3323.8,2.3019211]
[1768349045412,0.13384978,3325.7,3323.8,2.3019211]
[1768349046628,6.01395236,3325.6,3324.0,2.23900681]
[1768349046940,3.00697618,3325.6,3324.0,2.23900681]
[1768349047128,0.74862202,3325.5,3324.1,2.23900681]
[1768349047295,0.13384978,3325.5,3324.1,2.23900681]
[1768349047632,2.17070933,3326.8,3325.1,2.23900681]
[1768349047840,0.395,3325.9,3325.1,2.23900681]
[1768349047994,0.395,3325.8,3325.1,2.23900681]
[1768349048194,0.395,3325.8,3324.5,1.09410681]
[1768349048620,0.395,3325.8,3324.5,4.10204927]
[1768349048621,6.01377152,3325.7,3324.5,4.10204927]
[1768349048826,0.64087715,3325.6,3324.5,3.00794246]
[1768349049011,2.17070933,3325.5,3324.5,3.00794246]
[1768349049196,2.17070933,3325.5,3324.4,3.00802783]
[1768349049401,0.64087715,3325.6,3324.5,3.00794835]
[1768349049606,2.81158648,3325.6,3324.5,3.00794835]
[1768349049850,2.17070933,3325.4,3324.4,3.00804]
[1768349050128,2.56570933,3325.3,3324.0,0.8256035]
[1768349050518,2.56570933,3325.3,3323.5,2.23900681]
[1768349050739,2.17070933,3325.1,3323.6,3.00870641]
[1768349051051,0.10707982,3325.0,3323.5,5.24787968]
[1768349051361,2.27778915,3325.0,3323.5,5.24787968]
[1768349051569,2.39848824,3324.9,3323.5,3.00887287]
[1768349051718,2.50556806,3324.9,3323.5,3.00881588]
[1768349051920,2.17070933,3324.7,3322.5,3.00974746]
[1768349052162,0.10707982,3324.8,3322.3,3.04002376]
[1768349052163,2.17070933,3324.5,3322.3,3.04002376]
[1768349052320,2.17070933,3324.5,3322.8,2.23900681]
[1768349052517,2.17070933,3324.3,3322.3,2.23900681]
[1768349052757,2.17070933,3324.1,3322.4,2.23900681]
[1768349052923,0.81871945,3324.0,3322.4,2.23900681]
[1768349053117,0.395,3323.9,3322.4,2.23900681]
[1768349053316,2.56570933,3323.9,3322.4,2.23900681]
[1768349053534,2.73039347,3323.9,3322.4,2.23900681]
[1768349053722,2.73039347,3323.9,3322.0,2.23900681]
[1768349053723,2.33539347,3323.8,3322.0,2.23900681]
[1768349053933,2.69030476,3323.8,3322.0,2.54002469]
[1768349054131,0.16468414,3323.7,3322.0,2.54002469]
[1768349054476,0.16468414,3323.7,3322.2,2.23900681]
[1768349054620,0.26903048,3323.6,3322.3,6.01983849]
[1768349054819,3.27783809,3323.6,3322.3,6.01983849]
[1768349055040,0.26903048,3323.6,3322.4,2.23900681]
[1768349056675,5.44853091,3323.6,3322.3,6.01983849]
[1768349056843,2.51495081,3323.5,3322.1,6.02028836]
[1768349057232,0.34424148,3323.5,3322.2,2.11605552]
[1768349057535,0.395,3323.9,3322.6,2.11605552]
[1768349057737,2.08668014,3325.0,3322.8,2.11605552]
[1768349057738,6.41113424,3324.4,3322.8,2.11605552]
[1768349058042,3.40306712,3324.4,3323.0,2.11605552]
[1768349058258,6.41113424,3324.4,3323.0,2.11605552]
[1768349058462,0.64111342,3324.3,3323.0,2.36766107]
[1768349058840,0.64111342,3324.3,3323.1,6.01847672]
[1768349059040,2.08668014,3324.2,3323.1,6.01847672]
[1768349059258,0.64111342,3324.3,3323.1,8.13453224]
[1768349059470,0.64111342,3324.3,3323.2,0.83861378]
[1768349059670,0.73168073,3324.3,3323.2,0.83861378]
[1768349059870,3.73984367,3324.3,3323.2,0.83861378]
[1768349060191,6.74800661,3324.3,3323.0,3.26089675]
[1768349060372,8.83468675,3324.3,3323.0,3.26089675]
[1768349060900,2.08668014,3324.2,3323.0,3.0092912]
[1768349061064,2.08668014,3324.2,3322.5,0.001]
[1768349061392,2.08668014,3324.2,3322.9,3.00936572]
[1768349061696,2.08668014,3324.2,3323.0,3.00930064]
[1768349062799,2.08668014,3324.2,3322.5,0.401]
[1768349062800,0.73168073,3324.3,3323.2,5.12520332]
[1768349063093,0.09056731,3324.3,3323.4,2.11605552]
[1768349064006,8.10081334,3325.5,3323.6,2.11605552]
[1768349064313,1.50678376,3325.4,3323.8,2.11605552]
[1768349064464,0.396,3325.4,3324.0,2.11605552]
[1768349064665,0.396,3325.4,3324.2,2.11605552]
[1768349064916,0.396,3325.4,3324.4,2.11605552]
[1768349066092,3.40316357,3325.4,3324.4,0.4]
[1768349066295,0.396,3325.4,3324.4,0.4]
[1768349066494,0.396,3325.4,3324.5,0.64163042]
[1768349066900,3.4031928,3325.4,3324.5,0.64163042]
[1768349067196,8.49706574,3325.4,3323.6,2.11605552]
[1768349067379,8.49706574,3325.4,3323.9,3.40843483]
[1768349067782,3.4031928,3325.4,3324.4,3.00800993]
[1768349067990,0.396,3325.4,3324.5,3.00794993]
[1768349068194,3.40316063,3325.4,3324.5,3.00794993]
[1768349068388,0.34031606,3325.3,3324.5,3.00794993]
[1768349068589,0.396,3325.4,3324.6,2.11605552]
[1768349068992,0.396,3325.4,3324.5,3.00794993]
[1768349069194,3.40316511,3325.4,3324.5,3.00794993]
[1768349069704,0.396,3325.4,3324.6,3.00786928]
[1768349070372,0.396,3325.4,3324.6,6.01574992]
[1768349070772,0.396,3325.4,3324.6,3.00786928]
[1768349070972,0.396,3325.4,3324.4,6.0161232]
[1768349071172,0.002,3325.1,3324.5,0.64161232]
[1768349072596,0.002,3325.1,3324.1,3.00830231]
[1768349072597,0.002,3325.1,3323.8,2.11605552]
[1768349072910,2.08668014,3324.9,3323.6,3.00875469]
[1768349073110,2.08668014,3324.9,3323.3,0.001]
[1768349073111,6.01558034,3324.7,3323.3,0.001]
[1768349073326,3.0343873,3324.6,3323.3,0.64292956]
[1768349073528,0.27868102,3324.5,3323.3,0.64292956]
[1768349074221,0.27868102,3324.5,3323.3,0.001]
[1768349075330,6.0161232,3324.4,3323.3,0.001]
[1768349075531,0.27868102,3324.3,3323.3,0.001]
[1768349076395,3.00800483,3324.5,3323.3,0.001]
[1768349076620,0.27879801,3324.4,3323.3,0.001]
[1768349076821,1.00347829,3324.3,3323.3,0.001]
[1768349077029,0.72468028,3324.3,3323.3,0.001]
[1768349077700,0.396,3324.3,3323.3,0.001]
[1768349078430,0.27882881,3324.2,3323.3,0.001]
[1768349078628,3.40416663,3324.3,3323.3,0.001]
[1768349078835,0.27883357,3324.2,3323.3,0.001]
[1768349079026,5.59010483,3324.3,3323.3,0.001]
[1768349079327,2.46484985,3324.2,3323.3,0.60294767]
[1768349079537,2.185952,3324.2,3323.4,6.01793344]
[1768349080530,0.396,3324.3,3323.5,2.14035124]
[1768349080733,0.27893829,3324.2,3323.5,2.14035124]
[1768349080958,0.002,3325.1,3323.5,2.54035124]
[1768349081122,0.2789526,3325.0,3323.7,2.14035124]
[1768349081439,0.2789526,3324.9,3324.0,6.01684716]
[1768349081617,3.0094624,3325.1,3324.1,0.81571984]
[1768349081817,0.27897176,3325.0,3324.1,0.81571984]
[1768349082032,0.27897176,3324.9,3324.1,0.81571984]
[1768349082361,3.0094624,3325.1,3324.1,0.81571984]
[1768349082654,0.27895471,3325.0,3324.1,0.81571984]
[1768349082856,0.27895471,3324.9,3324.1,0.81571984]
[1768349083034,0.002,3325.1,3324.1,0.81571984]
[1768349083232,0.002,3325.1,3324.2,2.86360794]
[1768349083757,0.002,3325.1,3324.3,6.01630418]
[1768349083961,0.002,3325.1,3324.4,2.14035124]
[1768349084655,0.04419999,3325.3,3324.4,2.14035124]
[1768349084871,0.04419999,3325.3,3324.5,3.25683199]
[1768349085622,0.04419999,3325.3,3324.6,6.01576128]
[1768349088652,0.396,3325.6,3324.6,6.01576128]
[1768349088653,0.396,3325.6,3324.7,2.14035124]
[1768349088969,0.396,3325.6,3324.9,2.14035124]
[1768349089251,2.185952,3326.0,3324.8,1.15639932]
[1768349089454,2.185952,3325.8,3324.8,1.15639932]
[1768349089628,2.185952,3325.7,3324.8,1.15639932]
[1768349089826,2.581952,3326.1,3324.8,1.15639932]
[1768349090075,2.185952,3325.9,3324.0,0.4]
[1768349090227,0.53749109,3326.0,3324.5,3.0079643]
[1768349090228,2.185952,3325.7,3324.5,3.0079643]
[1768349090428,5.1930721,3325.5,3324.1,6.01666616]
[1768349090644,0.67529589,3325.4,3324.1,6.01666616]
[1768349090843,0.67529589,3325.4,3324.2,2.14035124]
[1768349090844,0.27929589,3325.3,3324.2,2.14035124]
[1768349091041,0.27929589,3325.3,3324.4,2.14035124]
[1768349091274,0.396,3326.3,3324.6,2.14035124]
[1768349091560,3.00649264,3326.2,3324.6,2.14035124]
[1768349091931,3.00649264,3326.2,3324.6,2.17043004]
[1768349092131,0.34024926,3326.1,3324.8,2.14035124]
[1768349093144,3.3467754,3326.1,3324.9,6.0152185]
[1768349094062,2.185952,3326.0,3324.9,3.00760925]
[1768349095159,2.185952,3326.0,3324.8,3.00769338]
[1768349095160,2.185952,3325.8,3324.8,3.00769338]
[1768349095380,2.70521769,3325.7,3324.8,3.00769338]
[1768349095590,2.70521769,3325.7,3325.1,0.001]
[1768349095881,3.10121769,3325.7,3324.5,3.00790665]
[1768349096086,0.31032177,3325.6,3324.6,3.00785779]
[1768349096451,2.49627377,3325.6,3324.7,3.00777645]
[1768349096663,0.34115395,3325.5,3324.6,3.00784316]
[1768349097183,3.34829921,3325.5,3324.4,3.00805061]
[1768349097785,3.34829921,3325.5,3324.4,6.01611221]
[1768349098285,6.35544447,3325.5,3324.4,3.00805061]
[1768349098484,2.185952,3325.4,3323.9,2.14035124]
[1768349098689,2.185952,3325.3,3324.3,3.00812555]
[1768349098883,0.85413965,3325.4,3324.3,8.15662888]
[1768349099083,0.396,3325.5,3324.4,2.14035124]
[1768349099289,2.185952,3325.4,3324.6,3.00788064]
[1768349099461,0.002,3325.8,3324.7,2.14035124]
[1768349099781,0.002,3325.8,3324.8,0.81561125]
[1768349100979,0.002,3325.8,3324.8,2.95596249]
[1768349101184,3.00880882,3325.8,3324.8,0.81561125]
[1768349101355,2.185952,3325.7,3324.0,2.14035124]
[1768349101679,2.185952,3325.7,3324.4,3.0079873]
[1768349102068,2.185952,3325.7,3324.7,3.00778213]
[1768349102264,2.185952,3325.7,3324.6,0.4]
[1768349102468,2.185952,3325.5,3324.5,3.40792045]
[1768349102869,2.185952,3325.5,3324.5,0.4]
[1768349103072,2.185952,3325.5,3324.7,3.00773321]
[1768349103265,5.19310859,3325.5,3324.6,3.00784161]
[1768349104082,0.002,3325.8,3324.6,8.15607349]
[1768349104285,0.002,3325.8,3324.8,2.14035124]
[1768349104989,0.002,3325.8,3324.9,0.4]
[1768349105355,2.55698787,3325.7,3323.9,0.21403512]
[1768349105563,2.16098787,3325.6,3323.4,2.12820643]
[1768349105774,2.16098787,3325.6,3323.6,2.12920643]
[1768349105980,2.16098787,3325.4,3324.4,3.00804446]
[1768349106291,2.16098787,3325.4,3323.7,2.12820643]
[1768349106493,2.16098787,3325.2,3323.8,0.4]
[1768349106682,2.16098787,3325.2,3324.0,3.00833547]
[1768349106683,0.396,3325.1,3324.0,3.00833547]
[1768349106991,0.396,3325.1,3324.5,3.00796405]
[1768349107190,0.396,3325.1,3324.3,3.00812081]
[1768349107191,0.09374847,3325.5,3324.4,3.00806153]
[1768349107377,3.10089274,3325.5,3323.8,2.12820643]
[1768349107707,2.16098787,3325.4,3324.9,0.001]
[1768349108568,6.10803701,3325.5,3324.9,0.001]
[1768349109416,3.00724746,3325.3,3324.4,0.4]
[1768349109604,0.60144557,3325.2,3324.4,0.4]
[1768349110089,0.60144557,3325.2,3324.0,6.01684716]
[1768349110294,2.16098787,3325.3,3324.1,0.4]
[1768349110794,3.10085481,3325.5,3324.1,0.4]
[1768349111238,0.09374847,3325.5,3324.2,2.15828885]
[1768349111409,3.10082802,3325.5,3324.3,6.01630418]
[1768349111614,3.10082802,3325.5,3324.5,2.12820643]
[1768349111814,3.10082802,3325.5,3324.6,0.4]
[1768349112009,6.10790757,3325.5,3324.3,6.01630418]
[1768349112216,6.10790757,3325.5,3324.3,6.41630418]
[1768349112417,8.26889544,3325.5,3324.3,6.41630418]
[1768349112642,0.82688954,3325.4,3324.4,2.12820643]
[1768349112840,0.09374847,3325.5,3324.4,2.12820643]
[1768349113542,0.09374847,3325.5,3324.5,6.01594224]
[1768349113856,0.09374847,3325.5,3324.5,8.14414867]
[1768349114055,0.09374847,3325.5,3324.6,2.12820643]
[1768349114623,2.25473634,3325.5,3324.5,6.01594224]
[1768349114843,2.25473634,3325.5,3324.6,0.60459422]
[1768349115758,2.25473634,3325.5,3324.7,3.00779017]
[1768349115919,2.25473634,3325.5,3324.7,6.01558034]
[1768349116319,0.09374847,3325.5,3324.7,6.01558034]
[1768349117158,0.09374847,3325.5,3324.7,3.00779017]
[1768349117355,2.04544718,3325.4,3324.4,3.00799462]
[1768349117529,2.44144718,3325.4,3324.4,3.00803504]
[1768349117730,0.396,3325.4,3324.1,0.401]
[1768349118150,0.396,3325.4,3324.5,3.0079614]
[1768349118463,0.396,3325.4,3324.5,6.01593252]
[1768349118663,0.34968544,3325.3,3324.5,6.01593252]
[1768349119064,0.34968544,3325.3,3324.4,3.00802203]
[1768349119459,2.04544718,3325.2,3324.4,3.00802203]
[1768349119767,3.0073439,3325.2,3324.8,0.001]
[1768349120064,6.0166878,3325.2,3323.9,3.00850519]
[1768349120267,0.33570293,3325.1,3323.9,3.00850519]
[1768349120465,0.33570293,3325.1,3323.8,3.00857863]
[1768349120762,0.33570293,3325.1,3323.9,3.00850979]
[1768349121668,6.01503758,3325.0,3323.8,3.0085789]
[1768349121866,1.03107405,3324.9,3323.8,3.0085789]
[1768349122064,1.03107405,3324.9,3323.8,6.0171835]
[1768349123267,3.07652123,3324.9,3323.6,0.001]
[1768349123470,3.07652123,3324.9,3323.7,3.00869159]
[1768349123767,6.01539942,3324.8,3323.6,0.001]
[1768349124867,9.02309913,3324.8,3323.6,0.001]
[1768349125067,2.04544718,3324.7,3323.6,0.001]
[1768349125771,6.01576128,3324.6,3323.6,0.001]
[1768349126405,9.02364192,3324.6,3323.6,0.001]
[1768349126707,1.10690891,3324.5,3323.6,0.001]
[1768349126877,0.396,3324.4,3323.6,0.001]
[1768349127607,3.00815209,3324.3,3323.6,0.001]
[1768349127764,6.01630418,3324.3,3323.6,0.001]
[1768349128510,2.04544718,3324.2,3323.3,0.001]
[1768349128661,2.04544718,3324.1,3323.3,0.001]
[1768349128869,0.64123042,3324.2,3323.3,0.001]
[1768349129070,0.396,3324.0,3323.3,0.001]
[1768349129482,2.44144718,3324.0,3323.3,0.001]
[1768349129684,0.54497954,3323.9,3323.3,0.001]
[1768349132405,3.55351468,3323.9,3323.3,0.001]
[1768349132768,3.55349741,3323.9,3323.6,0.001]
[1768349133008,0.54497954,3323.9,3323.6,0.001]
[1768349133796,0.396,3324.0,3323.6,0.001]
[1768349133797,3.00760925,3324.9,3323.6,2.20007234]
[1768349133998,0.396,3324.8,3323.6,2.20007234]
[1768349134627,2.44144718,3324.8,3323.6,0.001]
[1768349134828,2.04544718,3324.6,3323.6,0.001]
[1768349134990,2.04544718,3324.6,3323.3,0.001]
[1768349136123,8.04943869,3324.5,3323.3,0.001]
[1768349137687,8.04943869,3324.5,3322.9,8.25575209]
[1768349137883,2.03349645,3324.4,3322.9,5.24633261]
[1768349138109,6.01648516,3324.2,3322.9,8.25575209]
[1768349138623,6.01648516,3324.2,3322.9,5.24633261]
[1768349139621,2.03349645,3324.1,3322.9,3.00941948]
[1768349139932,6.01648516,3324.2,3322.9,3.00941948]
[1768349140695,8.04998161,3324.2,3322.9,3.00941948]
[1768349141009,6.01684716,3324.0,3322.9,6.01883896]
[1768349141208,6.01684716,3324.0,3322.9,3.00941948]
[1768349141536,11.05876719,3324.0,3322.5,0.001]
[1768349141700,2.03349645,3323.9,3322.5,0.001]
[1768349141901,3.53537317,3323.8,3322.6,3.00962528]
[1768349142113,2.03349645,3323.7,3322.6,3.00962528]
[1768349142314,2.03349645,3323.7,3322.5,3.01075633]
[1768349142611,2.03349645,3323.7,3322.5,0.001]
[1768349142925,1.50187672,3323.8,3322.5,0.001]
[1768349142926,2.03349645,3323.5,3322.5,0.001]
[1768349143130,8.05142989,3323.4,3322.5,0.001]
[1768349143926,0.396,3323.3,3322.5,0.001]
[1768349144516,0.396,3323.3,3323.2,0.001]
[1768349144832,0.396,3323.3,3322.5,0.001]
[1768349145039,0.84474299,3323.2,3322.5,0.001]
[1768349145403,3.00923836,3323.1,3322.5,0.001]
[1768349145734,6.01847672,3323.1,3322.5,0.001]
[1768349146043,3.00923836,3323.1,3322.5,0.001]
[1768349149252,3.00923836,3323.1,3322.1,3.01009799]
[1768349149424,3.85390673,3323.2,3322.1,8.2571553]
[1768349149425,0.68631451,3323.0,3322.1,8.2571553]
[1768349149618,2.03349645,3323.1,3322.1,6.02024217]
[1768349150155,3.85391909,3323.2,3322.1,8.2571553]
[1768349151058,3.85391909,3323.2,3322.1,5.24701112]
[1768349151752,3.85391909,3323.2,3322.1,8.2571553]
[1768349152048,0.72589961,3323.1,3322.1,5.24701112]
[1768349153321,0.396,3323.3,3322.1,5.24701112]
[1768349153322,2.03349645,3324.0,3322.2,2.63791313]
[1768349153526,0.396,3323.5,3322.4,2.23691313]
[1768349153763,3.16542489,3323.9,3322.6,2.23691313]
[1768349153938,3.40463536,3323.8,3322.8,2.23691313]
[1768349154345,0.396,3323.8,3322.8,2.23691313]
[1768349154544,3.40449342,3324.0,3322.8,2.23691313]
[1768349154749,6.41297452,3324.0,3322.8,2.23691313]
[1768349154949,6.41297452,3324.0,3322.7,6.42020124]
[1768349154950,6.41297452,3324.0,3323.0,2.23691313]
[1768349155150,3.4044811,3324.0,3323.0,2.23691313]
[1768349155363,6.4129622,3324.0,3323.0,2.23691313]
[1768349155570,6.4129622,3324.0,3322.8,0.401]
[1768349155863,6.4129622,3324.0,3322.7,2.23691313]
[1768349156099,0.94213307,3323.9,3322.7,5.6474986]
[1768349156269,0.94213307,3323.9,3322.8,3.00950775]
[1768349156670,0.94213307,3323.9,3322.7,5.64747195]
[1768349157206,0.002,3322.8,3322.7,5.64747195]
[1768349157376,0.002,3323.1,3322.7,5.64747195]
[1768349157697,0.94213307,3323.9,3322.9,2.23691313]
[1768349157898,3.95069383,3323.9,3323.0,5.24624204]
[1768349158203,0.94213307,3323.9,3323.1,2.23691313]
[1768349158417,0.396,3323.9,3323.1,2.23691313]
[1768349158900,3.40455939,3323.9,3323.1,2.23691313]
[1768349159199,3.40455939,3323.9,3322.9,3.00939352]
[1768349159387,6.41311878,3323.9,3322.8,5.64738907]
[1768349159587,2.03349645,3323.8,3322.7,3.87527017]
[1768349159803,2.03349645,3323.7,3322.6,3.41064822]
[1768349160203,2.03349645,3323.5,3322.4,0.001]
[1768349160387,2.03349645,3323.3,3322.4,3.01086479]
[1768349160712,2.2764461,3323.3,3322.4,0.001]
[1768349161914,2.2764461,3323.3,3321.5,2.63791313]
[1768349162113,2.03349645,3323.1,3321.5,2.23691313]
[1768349162319,2.03349645,3323.1,3321.6,0.401]
[1768349162516,2.03349645,3322.9,3321.2,2.23691313]
[1768349162681,1.40700877,3323.0,3321.2,5.2478391]
[1768349162682,2.03349645,3322.7,3321.2,5.2478391]
[1768349162879,2.03349645,3322.7,3321.3,3.01085169]
[1768349163079,2.03349645,3322.7,3321.4,3.01074889]
[1768349163295,0.24294965,3322.6,3321.5,3.01066032]
[1768349163493,3.0091478,3323.2,3321.6,2.63791313]
[1768349163695,0.396,3323.4,3321.9,2.23691313]
[1768349163915,0.396,3323.4,3322.1,2.23691313]
[1768349164192,0.75218058,3323.4,3322.3,2.23691313]
[1768349164605,3.00905726,3323.3,3322.3,5.24685957]
[1768349165316,6.01811452,3323.3,3322.3,5.24685957]
[1768349165511,6.01811452,3323.3,3322.3,2.23691313]
[1768349165812,6.69514403,3323.3,3322.3,5.24685139]
[1768349166219,0.396,3323.4,3322.4,2.16877582]
[1768349166517,2.32414804,3324.2,3322.8,2.16877582]
[1768349166518,0.397,3323.9,3322.8,2.16877582]
[1768349166823,0.397,3323.9,3323.0,2.16877582]
[1768349167412,0.397,3323.9,3321.4,1.68530603]
[1768349167413,2.55350525,3323.9,3322.6,5.17843599]
[1768349167611,2.55350525,3323.9,3322.7,0.5178436]
[1768349167915,8.57056049,3323.9,3322.6,5.57943599]
[1768349168302,8.57056049,3323.9,3322.6,5.17843599]
[1768349168726,8.57056049,3323.9,3322.6,3.00966017]
[1768349168930,0.85705605,3323.8,3322.6,8.18812719]
[1768349169323,0.002,3323.6,3322.6,8.18812719]
[1768349169511,0.002,3323.6,3322.7,2.19887182]
[1768349169710,0.399,3323.9,3323.2,2.16877582]
[1768349170714,0.002,3323.9,3323.2,5.43487873]
[1768349171068,0.002,3324.2,3323.3,2.16877582]
[1768349171214,0.002,3324.5,3323.2,6.27525071]
[1768349171215,0.002,3324.5,3323.6,2.16877582]
[1768349171538,0.002,3324.5,3323.6,2.56977582]
[1768349171936,3.01000285,3324.5,3323.6,2.56977582]
[1768349172412,6.61979296,3324.5,3323.6,0.401]
[1768349172616,0.60378726,3324.5,3323.7,3.00869512]
[1768349172810,0.002,3324.5,3323.8,2.16877582]
[1768349173207,3.00744718,3325.1,3323.8,2.16877582]
[1768349173546,0.399,3325.2,3323.8,2.16877582]
[1768349173713,0.002,3325.2,3323.8,2.16877582]
[1768349174112,3.0093501,3325.2,3323.8,2.16877582]
[1768349174313,0.28646578,3325.1,3324.0,2.16877582]
[1768349174613,0.28646578,3325.1,3324.1,6.01666616]
[1768349174834,0.28646578,3325.1,3324.1,8.18544198]
[1768349175040,0.28646578,3325.1,3324.2,2.16877582]
[1768349175238,0.002,3325.2,3324.2,2.56977582]
[1768349176044,3.00934311,3325.2,3324.2,2.56977582]
[1768349176545,3.00934605,3325.2,3324.2,2.56977582]
[1768349176852,0.002,3325.2,3324.3,5.17692791]